fUST/lending_fUST_20250827
["ID","MTS","AMOUNT","RATE_DAILY","PERIOD"]
[381584564,1756290582931,-480.0,0.00022082,2]
[381584565,1756290582959,-735.65,0.00022082,2]
[381584566,1756290582988,-480.0,0.00022082,2]
[381584567,1756290583017,-410.17,0.00022082,2]
[381584568,1756290583222,-69.83,0.00022082,2]
[381584569,1756290583250,-480.0,0.00022082,2]
[381584570,1756290583279,-1766.78,0.00022082,2]
[381584571,1756290583308,-2676.02,0.00022082,2]
[381584572,1756290583502,-539.47,0.00022082,2]
[381584573,1756290583531,-480.0,0.00022082,2]
[381584574,1756290583559,-500.0,0.00022082,2]
[381584575,1756290583587,-480.0,0.00022082,2]
[381584576,1756290583615,-892.07,0.00022082,2]
[381584577,1756290583642,-480.0,0.00022082,2]
[381584578,1756290583670,-480.0,0.00022082,2]
[381584579,1756290583698,-480.0,0.00022082,2]
[381584580,1756290583725,-517.85,0.00022082,2]
[381584581,1756290583842,-480.0,0.00022082,2]
[381584582,1756290583870,-480.0,0.00022082,2]
[381584583,1756290583898,-480.0,0.00022082,2]
[381584584,1756290583925,-480.0,0.00022082,2]
[381584585,1756290583954,-480.0,0.00022083,2]
[381584586,1756290583984,-1155.11,0.00022083,2]
[381584587,1756290584159,-3430.76,0.00022083,2]
[381584588,1756290584189,-480.0,0.00022083,2]
[381584589,1756290584216,-659.61,0.00022083,2]
[381584590,1756290584243,-379.27,0.00022083,2]
[381584591,1756290585282,-100.73,0.00022083,2]
[381584592,1756290585291,-897.19,0.00022083,2]
[381584593,1756290585300,-507.08,0.00022083,2]
[381584594,1756290585310,-480.0,0.00022084,2]
[381584595,1756290585320,-480.0,0.00022084,2]
[381584596,1756290585329,-156.97,0.00022084,2]
[381584597,1756290585346,-324.28,0.00022084,2]
[381584598,1756290585356,-155.72,0.00022084,2]
[381584599,1756290585373,-324.28,0.00022084,2]
[381584600,1756290585382,-335.33,0.00022084,2]
[381584601,1756290585397,-189.57,0.00022084,2]
[381584602,1756290585408,-290.43,0.00022084,2]
[381584610,1756290615080,525.813293,0.00013699,2]
[381584611,1756290615296,525.813293,0.00020187,2]
[381584614,1756290623068,785789.63878111,0.000219,2]
[381584616,1756290630284,-10000.01,0.000219,2]
[381584630,1756290632607,-35347.77454363,0.000219,2]
[381584631,1756290632677,-650.542962,0.000219,2]
[381584659,1756290635446,-233.46,0.0002189,10]
[381584660,1756290635477,-215.03490672,0.00021899,2]
[381584661,1756290635513,-500.0,0.00021899,2]
[381584662,1756290635543,-500.0,0.00021899,2]
[381584663,1756290635574,-500.0,0.00021899,2]
[381584664,1756290635604,-500.0,0.00021899,2]
[381584665,1756290635637,-500.0,0.00021899,2]
[381584666,1756290635667,-500.0,0.00021899,2]
[381584667,1756290635874,-500.0,0.00021899,2]
[381584668,1756290635905,-500.0,0.00021899,2]
[381584669,1756290635936,-500.0,0.00021899,2]
[381584670,1756290636073,-500.0,0.00021899,2]
[381584671,1756290636102,-500.0,0.00021899,2]
[381584672,1756290636346,-103.02018656,0.000219,2]
[381584673,1756290636361,-8000.01,0.000219,2]
[381584674,1756290636377,-10000.01,0.000219,2]
[381584675,1756290636425,-10000.01,0.000219,2]
[381584676,1756290636578,-10000.01,0.000219,2]
[381584677,1756290636876,-10000.01,0.000219,2]
[381584678,1756290637105,-10000.01,0.000219,2]
[381584679,1756290637343,-10000.01,0.000219,2]
[381584680,1756290637534,-10000.01,0.000219,2]
[381584713,1756290638554,-174120.22358753,0.000219,2]
[381585218,1756290643567,-488.3765286,0.000219,2]
[381585220,1756290643580,-2601.87916527,0.000219,2]
[381585245,1756290643789,-121.29025082,0.000219,2]
[381585545,1756290646879,-2230.55386598,0.000219,2]
[381585547,1756290646891,-80084.65033987,0.000219,2]
[381585549,1756290646901,-607.702018,0.00021908,2]
[381585551,1756290646910,-336.18,0.00022077,10]
[381585553,1756290646919,-280.15,0.00022077,10]
[381585555,1756290646929,-975.89,0.00022077,3]
[381585557,1756290646938,-480.0,0.00022079,2]
[381585559,1756290646947,-480.0,0.00022079,2]
[381585561,1756290646956,-480.0,0.00022079,2]
[381585562,1756290646966,-480.0,0.00022079,2]
[381585563,1756290646976,-480.0,0.00022079,2]
[381585564,1756290646985,-480.0,0.00022079,2]
[381585565,1756290646996,-593.69,0.00022079,2]
[381585566,1756290647005,-480.0,0.00022079,2]
[381585567,1756290647015,-480.0,0.00022079,2]
[381585568,1756290647024,-717.72,0.00022079,2]
[381585569,1756290647034,-480.0,0.00022079,2]
[381585570,1756290647044,-480.0,0.00022079,2]
[381585571,1756290647053,-300.0,0.0002208,2]
[381585572,1756290647063,-1200.0,0.0002208,2]
[381585573,1756290647073,-480.0,0.00022081,2]
[381585575,1756290647083,-480.0,0.00022081,2]
[381585577,1756290647092,-480.0,0.00022081,2]
[381585579,1756290647102,-480.0,0.00022081,2]
[381585581,1756290647111,-480.0,0.00022081,2]
[381585583,1756290647121,-480.0,0.00022081,2]
[381585585,1756290647132,-766.59,0.00022081,2]
[381585587,1756290647141,-560.91,0.00022081,2]
[381585589,1756290647151,-480.0,0.00022081,2]
[381585591,1756290647161,-480.0,0.00022081,2]
[381585594,1756290647171,-1174.16,0.00022081,2]
[381585595,1756290647181,-480.0,0.00022081,2]
[381585597,1756290647191,-480.0,0.00022081,2]
[381585600,1756290647200,-480.0,0.00022081,2]
[381585601,1756290647209,-480.0,0.00022081,2]
[381585604,1756290647220,-3004.24,0.00022081,2]
[381585606,1756290647230,-480.0,0.00022082,2]
[381585608,1756290647240,-480.0,0.00022082,2]
[381585610,1756290647249,-2005.6,0.00022082,2]
[381585612,1756290647259,-855.28,0.00022082,2]
[381585614,1756290647268,-480.0,0.00022082,2]
[381585616,1756290647278,-778.36,0.00022082,2]
[381585618,1756290647288,-1068.31,0.00022082,2]
[381585620,1756290647297,-480.0,0.00022083,2]
[381585622,1756290647307,-480.0,0.00022084,2]
[381585624,1756290647317,-480.0,0.00022084,2]
[381585626,1756290647326,-480.0,0.00022084,2]
[381585628,1756290647335,-480.0,0.00022084,2]
[381585630,1756290647345,-480.0,0.00022084,2]
[381585632,1756290647354,-480.0,0.00022084,2]
[381585634,1756290647364,-480.0,0.00022084,2]
[381585636,1756290647374,-972.06,0.00022084,2]
[381585638,1756290647384,-480.0,0.00022084,2]
[381585640,1756290647393,-480.0,0.00022084,2]
[381585642,1756290647404,-480.0,0.00022084,2]
[381585644,1756290647415,-480.0,0.00022084,2]
[381585646,1756290647424,-909.91,0.00022084,2]
[381585648,1756290647439,-749.06,0.00022084,2]
[381585650,1756290647448,-480.0,0.00022084,2]
[381585652,1756290647458,-480.0,0.00022084,2]
[381585654,1756290647468,-833.01,0.00022084,2]
[381585656,1756290647477,-480.0,0.00022084,2]
[381585658,1756290647487,-495.17,0.00022084,2]
[381585660,1756290647497,-480.0,0.00022084,2]
[381585662,1756290647507,-480.0,0.00022084,2]
[381585664,1756290647516,-480.0,0.00022084,2]
[381585666,1756290647526,-480.0,0.00022084,2]
[381585668,1756290647535,-480.0,0.00022084,2]
[381585670,1756290647544,-480.0,0.00022084,2]
[381585672,1756290647554,-480.0,0.00022084,2]
[381585674,1756290647564,-480.0,0.00022084,2]
[381585676,1756290647573,-480.0,0.00022084,2]
[381585678,1756290647583,-480.0,0.00022084,2]
[381585680,1756290647592,-480.0,0.00022084,2]
[381585682,1756290647602,-480.0,0.00022084,2]
[381585684,1756290647611,-569.47460839,0.00022084,2]
[381585686,1756290647620,-485.6,0.00022084,2]
[381585688,1756290647631,-480.0,0.00022084,2]
[381585690,1756290647640,-771.18,0.00022084,2]
[381585692,1756290647650,-480.0,0.00022084,2]
[381585694,1756290647659,-542.71514986,0.00022084,2]
[381585696,1756290647668,-480.0,0.00022084,2]
[381585698,1756290647678,-480.0,0.00022084,2]
[381585700,1756290647687,-480.0,0.00022084,2]
[381585702,1756290647702,-480.0,0.00022084,2]
[381585704,1756290647720,-480.0,0.00022084,2]
[381585706,1756290647729,-714.92,0.00022084,2]
[381585708,1756290647739,-480.0,0.00022084,2]
[381585710,1756290647748,-480.0,0.00022084,2]
[381585712,1756290647757,-480.0,0.00022084,2]
[381585714,1756290647767,-481.78692202,0.00022084,2]
[381585716,1756290647776,-565.23,0.00022084,2]
[381585718,1756290647785,-480.0,0.00022084,2]
[381585720,1756290647794,-480.0,0.00022084,2]
[381585722,1756290647803,-500.0,0.00022084,2]
[381585724,1756290647813,-480.0,0.00022084,2]
[381585726,1756290647822,-480.0,0.00022084,2]
[381585728,1756290647833,-480.0,0.00022084,2]
[381585730,1756290647843,-480.0,0.00022084,2]
[381585732,1756290647852,-480.0,0.00022084,2]
[381585734,1756290647862,-1428.88,0.00022084,2]
[381585736,1756290647871,-549.61,0.00022084,2]
[381585738,1756290647882,-480.0,0.00022084,2]
[381585740,1756290647891,-480.0,0.00022084,2]
[381585742,1756290647901,-480.0,0.00022084,2]
[381585744,1756290647910,-480.0,0.00022084,2]
[381585746,1756290647919,-480.0,0.00022084,2]
[381585748,1756290647929,-908.02,0.00022084,2]
[381585750,1756290647938,-480.0,0.00022084,2]
[381585752,1756290647948,-480.0,0.00022084,2]
[381585754,1756290647959,-940.91,0.00022084,2]
[381585756,1756290647968,-480.0,0.00022084,2]
[381585758,1756290647977,-649.58,0.00022084,2]
[381585760,1756290647987,-480.0,0.00022084,2]
[381585762,1756290647996,-480.0,0.00022087,2]
[381585764,1756290648006,-480.0,0.00022087,2]
[381585766,1756290648016,-480.0,0.00022087,2]
[381585769,1756290648025,-480.0,0.00022087,2]
[381585771,1756290648035,-480.0,0.00022087,2]
[381585772,1756290648044,-480.0,0.00022087,2]
[381585774,1756290648054,-480.0,0.00022087,2]
[381585776,1756290648063,-480.0,0.00022087,2]
[381585778,1756290648073,-211.63682227,0.00022087,2]
[381585780,1756290648082,-480.0,0.00022087,2]
[381585782,1756290648091,-480.0,0.00022087,2]
[381585784,1756290648100,-480.0,0.00022087,2]
[381585786,1756290648110,-480.0,0.00022087,2]
[381585788,1756290648120,-480.0,0.00022087,2]
[381585790,1756290648130,-480.0,0.00022087,2]
[381585792,1756290648139,-480.0,0.00022087,2]
[381585794,1756290648149,-480.0,0.00022087,2]
[381585796,1756290648159,-480.0,0.00022087,2]
[381585798,1756290648168,-480.0,0.00022087,2]
[381585800,1756290648178,-480.0,0.00022087,2]
[381585802,1756290648188,-480.0,0.00022087,2]
[381585805,1756290648198,-480.0,0.00022087,2]
[381585807,1756290648207,-480.0,0.00022087,2]
[381585809,1756290648217,-480.0,0.00022087,2]
[381585811,1756290648226,-480.0,0.00022087,2]
[381585813,1756290648235,-480.0,0.00022087,2]
[381585815,1756290648245,-155.0,0.00022087,2]
[381585817,1756290648255,-480.0,0.00022087,2]
[381585819,1756290648264,-480.0,0.00022087,2]
[381585820,1756290648273,-227.54480076,0.00022087,2]
[381585823,1756290648283,-480.0,0.00022087,2]
[381585825,1756290648293,-480.0,0.00022087,2]
[381585827,1756290648305,-480.0,0.00022087,2]
[381585829,1756290648315,-480.0,0.00022087,2]
[381585831,1756290648324,-480.0,0.00022087,2]
[381585833,1756290648335,-480.0,0.00022087,2]
[381585835,1756290648344,-480.0,0.00022087,2]
[381585837,1756290648354,-480.0,0.00022087,2]
[381585839,1756290648363,-480.0,0.00022087,2]
[381585841,1756290648372,-480.0,0.00022087,2]
[381585843,1756290648383,-323.85609496,0.00022087,2]
[381585845,1756290648393,-480.0,0.00022087,2]
[381585847,1756290648404,-480.0,0.00022087,2]
[381585849,1756290648419,-480.0,0.00022087,2]
[381585851,1756290648429,-480.0,0.00022087,2]
[381585853,1756290648438,-727.33,0.00022087,2]
[381585855,1756290648448,-372.96267556,0.00022087,2]
[381585857,1756290648458,-480.0,0.00022087,2]
[381585859,1756290648467,-480.0,0.00022087,2]
[381585861,1756290648478,-480.0,0.00022087,2]
[381585863,1756290648488,-480.0,0.00022087,2]
[381585865,1756290648502,-480.0,0.00022087,2]
[381585867,1756290648511,-480.0,0.00022087,2]
[381585869,1756290648521,-480.0,0.00022087,2]
[381585871,1756290648530,-480.0,0.00022087,2]
[381585873,1756290648539,-480.0,0.00022087,2]
[381585874,1756290648548,-480.0,0.00022087,2]
[381585876,1756290648558,-480.0,0.00022087,2]
[381585878,1756290648568,-407.45110682,0.00022087,2]
[381585881,1756290648578,-480.0,0.00022087,2]
[381585882,1756290648587,-483.3,0.00022087,2]
[381585885,1756290648598,-480.0,0.00022087,2]
[381585887,1756290648608,-1348.71,0.00022087,2]
[381585888,1756290648618,-480.0,0.00022087,2]
[381585890,1756290648627,-480.0,0.00022087,2]
[381585892,1756290648640,-526.49,0.00022087,2]
[381585894,1756290648649,-480.0,0.00022087,2]
[381585896,1756290648658,-480.0,0.00022087,2]
[381585898,1756290648668,-480.0,0.00022087,2]
[381585900,1756290648678,-480.0,0.00022087,2]
[381585902,1756290648687,-480.0,0.00022087,2]
[381585905,1756290648697,-480.0,0.00022087,2]
[381585906,1756290648707,-480.0,0.00022087,2]
[381585909,1756290648716,-480.0,0.00022087,2]
[381585910,1756290648726,-480.0,0.00022087,2]
[381585912,1756290648736,-1942.28,0.00022087,2]
[381585914,1756290648745,-480.0,0.00022087,2]
[381585916,1756290648756,-480.0,0.00022087,2]
[381585918,1756290648765,-480.0,0.00022087,2]
[381585920,1756290648775,-1259.09,0.00022087,2]
[381585922,1756290648784,-480.0,0.00022087,2]
[381585924,1756290648794,-480.0,0.00022087,2]
[381585926,1756290648804,-480.0,0.00022087,2]
[381585928,1756290648814,-480.0,0.00022087,2]
[381585930,1756290648823,-480.0,0.00022087,2]
[381585932,1756290648832,-480.0,0.00022087,2]
[381585934,1756290648842,-480.0,0.00022087,2]
[381585936,1756290648852,-480.0,0.00022087,2]
[381585938,1756290648861,-507.93,0.00022087,2]
[381585940,1756290648870,-480.0,0.00022087,2]
[381585942,1756290648882,-480.0,0.00022087,2]
[381585944,1756290648892,-480.0,0.00022087,2]
[381585946,1756290648901,-513.87407488,0.00022087,2]
[381585948,1756290648917,-480.0,0.00022087,2]
[381585950,1756290648938,-677.48,0.00022087,2]
[381585952,1756290648957,-480.0,0.00022087,2]
[381585954,1756290648967,-480.0,0.00022087,2]
[381585956,1756290648977,-480.0,0.00022087,2]
[381585958,1756290648987,-480.0,0.00022087,2]
[381585960,1756290648996,-480.0,0.00022087,2]
[381585962,1756290649005,-480.0,0.00022087,2]
[381585964,1756290649014,-480.0,0.00022087,2]
[381585966,1756290649023,-480.0,0.00022087,2]
[381585968,1756290649033,-480.0,0.00022087,2]
[381585970,1756290649042,-480.0,0.00022087,2]
[381585972,1756290649051,-480.0,0.00022087,2]
[381585974,1756290649061,-603.24,0.00022087,2]
[381585976,1756290649070,-480.70040711,0.00022087,2]
[381585978,1756290649080,-3475.77,0.00022087,2]
[381585980,1756290649089,-480.0,0.00022087,2]
[381585982,1756290649100,-480.0,0.00022087,2]
[381585984,1756290649109,-480.0,0.00022087,2]
[381585986,1756290649119,-480.0,0.00022087,2]
[381585988,1756290649128,-480.0,0.00022087,2]
[381585990,1756290649139,-480.0,0.00022087,2]
[381585992,1756290649149,-480.0,0.00022087,2]
[381585994,1756290649159,-1906.9,0.00022087,2]
[381585996,1756290649169,-480.0,0.00022087,2]
[381585998,1756290649179,-480.0,0.00022087,2]
[381586000,1756290649190,-480.0,0.00022087,2]
[381586002,1756290649201,-480.0,0.00022087,2]
[381586005,1756290649211,-480.0,0.00022087,2]
[381586007,1756290649221,-550.51,0.00022087,2]
[381586008,1756290649231,-480.0,0.00022087,2]
[381586010,1756290649240,-480.0,0.00022087,2]
[381586012,1756290649250,-480.0,0.00022087,2]
[381586014,1756290649259,-480.0,0.00022087,2]
[381586016,1756290649269,-1227.52,0.00022087,2]
[381586018,1756290649278,-480.0,0.00022087,2]
[381586021,1756290649288,-480.0,0.00022087,2]
[381586023,1756290649298,-480.0,0.00022087,2]
[381586025,1756290649307,-480.0,0.00022087,2]
[381586026,1756290649316,-580.29,0.00022087,2]
[381586028,1756290649326,-3579.69,0.00022087,2]
[381586030,1756290649335,-480.0,0.00022087,2]
[381586032,1756290649344,-480.0,0.00022087,2]
[381586034,1756290649354,-433.28953154,0.00022087,2]
[381586126,1756290650267,-194.55,0.00022072,10]
[381586129,1756290650297,-480.0,0.00022079,2]
[381586133,1756290650325,-480.0,0.00022081,2]
[381586137,1756290650354,-480.0,0.00022081,2]
[381586141,1756290650384,-236.23698014,0.00022082,2]
[381586144,1756290650414,-46.71046846,0.00022087,2]
[381586148,1756290650443,-540.12,0.00022088,2]
[381586152,1756290650472,-480.0,0.00022091,2]
[381586156,1756290650501,-480.0,0.00022091,2]
[381586159,1756290650529,-480.0,0.00022091,2]
[381586163,1756290650557,-480.0,0.00022091,2]
[381586167,1756290650586,-480.0,0.00022091,2]
[381586182,1756290650737,-480.0,0.00022091,2]
[381586186,1756290650766,-655.49,0.00022091,2]
[381586189,1756290650795,-480.0,0.00022091,2]
[381586202,1756290650916,-694.46,0.00022091,2]
[381586205,1756290650944,-480.0,0.00022091,2]
[381586208,1756290650971,-480.0,0.00022091,2]
[381586211,1756290650999,-480.0,0.00022091,2]
[381586215,1756290651027,-480.0,0.00022091,2]
[381586218,1756290651054,-489.4,0.00022091,2]
[381586221,1756290651082,-31.55,0.00022091,2]
[381586236,1756290651264,-498.21,0.00022091,2]
[381586239,1756290651291,-480.0,0.00022091,2]
[381586242,1756290651319,-480.0,0.00022091,2]
[381586246,1756290651346,-480.0,0.00022091,2]
[381586249,1756290651374,-480.0,0.00022091,2]
[381586252,1756290651403,-480.0,0.00022091,2]
[381586256,1756290651432,-480.0,0.00022091,2]
[381586259,1756290651460,-480.0,0.00022091,2]
[381586262,1756290651489,-480.0,0.00022091,2]
[381586266,1756290651518,-480.0,0.00022091,2]
[381586277,1756290651643,-480.0,0.00022091,2]
[381586281,1756290651671,-480.0,0.00022091,2]
[381586284,1756290651700,-565.31,0.00022091,2]
[381586298,1756290651853,-480.0,0.00022079,2]
[381586301,1756290651883,-1720.49,0.00022091,2]
[381586311,1756290651987,-4400.98,0.00022091,2]
[381586363,1756290652604,-1198.05,0.00022091,2]
[381586366,1756290652633,-1504.36,0.00022091,2]
[381586370,1756290652662,-480.0,0.00022092,2]
[381586373,1756290652692,-480.0,0.00022092,2]
[381586377,1756290652721,-480.0,0.00022092,2]
[381586380,1756290652750,-480.0,0.00022092,2]
[381586383,1756290652778,-275.19,0.00022092,2]
[381586400,1756290652955,-480.0,0.00021917,2]
[381586403,1756290652983,-579.94,0.00022081,2]
[381586407,1756290653012,-204.81,0.00022092,2]
[381586410,1756290653041,-480.0,0.00022092,2]
[381586414,1756290653068,-480.0,0.00022092,2]
[381586417,1756290653095,-480.0,0.00022092,2]
[381586421,1756290653123,-480.0,0.00022092,2]
[381586424,1756290653151,-480.0,0.00022092,2]
[381586428,1756290653178,-480.0,0.00022092,2]
[381586431,1756290653206,-480.0,0.00022092,2]
[381586435,1756290653233,-270.51,0.00022092,2]
[381586468,1756290653593,-209.49,0.00022092,2]
[381586471,1756290653621,-480.0,0.00022092,2]
[381586475,1756290653649,-480.0,0.00022092,2]
[381586478,1756290653676,-480.0,0.00022092,2]
[381586482,1756290653703,-480.0,0.00022092,2]
[381586485,1756290653732,-482.26589214,0.00022092,2]
[381586489,1756290653759,-480.0,0.00022092,2]
[381586492,1756290653785,-480.0,0.00022092,2]
[381586496,1756290653812,-480.0,0.00022092,2]
[381586499,1756290653839,-480.0,0.00022092,2]
[381586503,1756290653870,-456.49821572,0.00022092,2]
[381586512,1756290653992,-23.50178428,0.00022092,2]
[381586513,1756290654001,-97.82921066,0.00022092,2]
[381586514,1756290654036,-382.17078934,0.00022092,2]
[381586515,1756290654102,-480.0,0.00022092,2]
[381586516,1756290654129,-480.0,0.00022092,2]
[381586517,1756290654157,-480.0,0.00022092,2]
[381586518,1756290654183,-584.2,0.00022092,2]
[381586519,1756290654211,-480.0,0.00022092,2]
[381586520,1756290654238,-480.0,0.00022092,2]
[381586521,1756290654263,-192.67425675,0.00022092,2]
[381586522,1756290654290,-480.0,0.00022092,2]
[381586523,1756290654319,-480.0,0.00022092,2]
[381586524,1756290654345,-480.0,0.00022092,2]
[381586525,1756290654649,-143.20495391,0.00022082,2]
[381586526,1756290654675,-396.40504609,0.00022082,2]
[381586527,1756290654685,-83.59495391,0.00022092,2]
[381586528,1756290654698,-396.40504609,0.00022092,2]
[381586529,1756290654707,-183.53495391,0.00022092,2]
[381586530,1756290654721,-204.81,0.00022092,2]
[381586531,1756290654735,-91.65504609,0.00022092,2]
[381586532,1756290654744,-388.34495391,0.00022092,2]
[381586533,1756290654758,-91.65504609,0.00022092,2]
[381586534,1756290654767,-388.34495391,0.00022092,2]
[381586535,1756290654781,-240.15504609,0.00022092,2]
[381586536,1756290654791,-239.84495391,0.00022092,2]
[381586537,1756290654809,-240.15504609,0.00022092,2]
[381586538,1756290654817,-239.84495391,0.00022092,2]
[381586540,1756290654835,-240.15504609,0.00022092,2]
[381586541,1756290654844,-239.84495391,0.00022092,2]
[381586542,1756290654857,-240.15504609,0.00022092,2]
[381586543,1756290654866,-239.84495391,0.00022092,2]
[381586545,1756290654880,-240.15504609,0.00022092,2]
[381586546,1756290654891,-239.84495391,0.00022092,2]
[381586548,1756290654904,-240.15504609,0.00022092,2]
[381586549,1756290654913,-239.84495391,0.00022092,2]
[381586567,1756290655072,-209.49,0.00022092,2]
[381586569,1756290655085,-30.66504609,0.00022092,2]
[381586571,1756290655094,-449.33495391,0.00022092,2]
[381586574,1756290655108,-30.66504609,0.00022092,2]
[381586575,1756290655117,-449.33495391,0.00022092,2]
[381586578,1756290655135,-30.66504609,0.00022092,2]
[381586580,1756290655144,-449.33495391,0.00022092,2]
[381586583,1756290655158,-30.66504609,0.00022092,2]
[381586585,1756290655167,-449.33495391,0.00022092,2]
[381586587,1756290655180,-30.66504609,0.00022092,2]
[381586589,1756290655189,-451.60084605,0.00022092,2]
[381586591,1756290655202,-28.39915395,0.00022092,2]
[381586593,1756290655211,-451.60084605,0.00022092,2]
[381586597,1756290655233,-480.0,0.00022079,2]
[381586599,1756290655247,-57.57915395,0.00022092,2]
[381586601,1756290655257,-422.42084605,0.00022092,2]
[381586604,1756290655271,-57.57915395,0.00022092,2]
[381586606,1756290655280,-422.42084605,0.00022092,2]
[381586608,1756290655294,-57.57915395,0.00022092,2]
[381586610,1756290655303,-422.42084605,0.00022092,2]
[381586612,1756290655316,-57.57915395,0.00022092,2]
[381586614,1756290655326,-324.59163539,0.00022092,2]
[381586617,1756290655339,-155.40836461,0.00022092,2]
[381586619,1756290655348,-324.59163539,0.00022092,2]
[381586622,1756290655369,-155.40836461,0.00022092,2]
[381586624,1756290655378,-324.59163539,0.00022092,2]
[381586626,1756290655392,-155.40836461,0.00022092,2]
[381586628,1756290655401,-324.59163539,0.00022092,2]
[381586631,1756290655416,-155.40836461,0.00022092,2]
[381586633,1756290655425,-428.79163539,0.00022092,2]
[381586635,1756290655440,-51.20836461,0.00022092,2]
[381586637,1756290655449,-428.79163539,0.00022092,2]
[381586640,1756290655463,-51.20836461,0.00022092,2]
[381586642,1756290655472,-428.79163539,0.00022092,2]
[381586644,1756290655486,-51.20836461,0.00022092,2]
[381586646,1756290655496,-141.46589214,0.00022092,2]
[381586649,1756290655513,-338.53410786,0.00022092,2]
[381586651,1756290655522,-141.46589214,0.00022092,2]
[381586653,1756290655539,-480.0,0.00022079,2]
[381586656,1756290655553,-338.53410786,0.00022092,2]
[381586658,1756290655563,-141.46589214,0.00022092,2]
[381586660,1756290655577,-1.91990782,0.00022092,2]
[381587151,1756290660338,-500.0,0.00021899,2]
[381587155,1756290660367,-500.0,0.00021899,2]
[381587159,1756290660397,-500.0,0.00021899,2]
[381587163,1756290660428,-500.0,0.00021899,2]
[381587167,1756290660462,-500.0,0.00021899,2]
[381587171,1756290660493,-500.0,0.00021899,2]
[381587176,1756290660523,-500.0,0.00021899,2]
[381587180,1756290660552,-193.28390927,0.00021899,2]
[381587184,1756290660585,-500.0,0.00021899,2]
[381587188,1756290660613,-500.0,0.00021899,2]
[381587192,1756290660642,-113.44218146,0.00021899,2]
[381587210,1756290660795,-386.55781854,0.00021899,2]
[381587214,1756290660824,-500.0,0.00021899,2]
[381587218,1756290660853,-500.0,0.00021899,2]
[381587222,1756290660882,-500.0,0.00021899,2]
[381587226,1756290660910,-500.0,0.00021899,2]
[381587242,1756290661048,-480.0,0.00021917,2]
[381587246,1756290661076,-480.0,0.00021917,2]
[381587250,1756290661104,-480.0,0.00022079,2]
[381587254,1756290661132,-480.0,0.00022079,2]
[381587258,1756290661161,-480.0,0.00022079,2]
[381587270,1756290661264,-480.0,0.00022079,2]
[381587271,1756290661292,-1339.5,0.00022081,2]
[381587272,1756290661324,-480.0,0.00022081,2]
[381587273,1756290661352,-480.0,0.00022081,2]
[381587274,1756290661380,-480.0,0.00022082,2]
[381587277,1756290661410,-480.0,0.00022082,2]
[381587281,1756290661439,-480.0,0.00022082,2]
[381587285,1756290661468,-361.81,0.00022082,10]
[381587289,1756290661497,-357.39,0.00022082,2]
[381587304,1756290661631,-122.61,0.00022082,2]
[381587307,1756290661660,-480.0,0.00022087,2]
[381587311,1756290661689,-698.08,0.00022087,2]
[381587315,1756290661718,-940.34,0.00022087,2]